bitfinex/quotes_ETHUSD_20250519
["timestamp","ask_amount","ask_price","bid_price","bid_amount"]
[1747663977604,19.754,2434.4,2434.2,4.1080752]
[1747663978433,19.754,2434.4,2434.1,4.1581998]
[1747663978713,19.754,2434.4,2434.1,4.15829296]
[1747663978915,19.754,2434.4,2434.1,0.05]
[1747663979123,25.43357311,2434.4,2434.1,0.05]
[1747663979711,21.3257,2434.4,2434.1,0.05]
[1747663979882,21.3257,2434.4,2434.1,4.15827263]
[1747663980828,19.754,2434.4,2434.1,0.05]
[1747663981032,23.86189154,2434.4,2434.1,0.05]
[1747663981337,19.754,2434.4,2434.1,0.05]
[1747663981544,19.754,2434.4,2434.1,4.15828887]
[1747663981836,19.754,2434.4,2434.1,4.15826106]
[1747663982325,19.754,2434.4,2434.3,4.10795711]
[1747663982326,9.94,2434.4,2434.3,4.10795711]
[1747663982525,19.752,2434.4,2434.3,4.10795711]
[1747663982740,6.21412587,2434.2,2434.1,0.05]
[1747663982895,21.11251677,2434.2,2434.1,0.05]
[1747663983092,6.21412587,2434.2,2434.1,0.05]
[1747663983352,11.368,2434.2,2434.1,0.05]
[1747663983892,9.812,2434.2,2434.1,0.05]
[1747663984152,9.812,2434.2,2433.5,0.13559692]
[1747663984153,0.55,2433.6,2433.5,0.13559692]
[1747663984432,8.21408853,2434.2,2433.5,0.13559692]
[1747663984433,1.6489,2434.0,2433.5,0.13559692]
[1747663984595,9.811,2433.6,2433.5,0.13559692]
[1747663985101,9.811,2433.6,2433.1,1.6634]
[1747663985326,9.811,2433.6,2433.1,5.77329061]
[1747663985692,4.10932136,2433.5,2433.1,1.6634]
[1747663986336,4.10957205,2433.4,2433.1,0.05]
[1747663986633,1.5099,2433.4,2433.1,0.05]
[1747663986794,11.28530696,2433.2,2433.1,0.05]
[1747663987140,14.22421423,2433.2,2433.1,0.05]
[1747663987431,14.52484148,2433.2,2433.1,0.05]
[1747663987811,14.56574148,2433.2,2433.1,0.05]
[1747663989617,19.88888547,2433.2,2433.1,0.05]
[1747663990621,24.37974148,2433.2,2433.1,0.05]
[1747663990851,34.20974148,2433.2,2433.1,0.05]
[1747663994473,14.17090398,2432.2,2432.1,0.05]
[1747663994651,56.87204797,2432.2,2432.1,0.05]
[1747663995323,56.87204797,2432.2,2431.1,0.05]
[1747663995324,12.66319512,2431.2,2431.1,0.05]
[1747663995514,32.29519512,2431.2,2431.1,0.05]
[1747663996574,39.12813911,2431.2,2431.1,0.05]
[1747663996917,33.80599512,2431.2,2431.1,0.05]
[1747663998029,34.11352745,2431.2,2431.1,0.05]
[1747663998573,0.55,2430.9,2430.1,0.05]
[1747663998875,4.66488766,2430.2,2430.1,0.05]
[1747663999043,10.369,2430.2,2430.1,0.05]
[1747663999244,24.11588766,2430.2,2430.1,0.05]
[1747663999430,22.48388766,2430.2,2430.1,0.05]
[1747663999763,8.55,2430.2,2430.1,0.05]
[1747664000068,18.369,2430.2,2430.1,0.05]
[1747664000233,10.369,2430.2,2430.1,0.05]
[1747664001061,14.48388766,2430.2,2430.1,0.05]
[1747664001465,24.13878766,2430.2,2430.1,0.05]
[1747664001629,29.46193165,2430.2,2430.1,0.05]
[1747664003062,29.46393165,2430.2,2430.1,0.05]
[1747664004225,29.26460565,2430.2,2430.1,0.05]
[1747664004433,30.52011117,2430.2,2430.1,0.05]
[1747664004757,29.89829379,2430.2,2430.1,0.05]
[1747664005262,5.66458159,2429.2,2429.1,0.05]
[1747664005467,13.66458159,2429.2,2429.1,0.05]
[1747664006028,33.31258159,2429.2,2429.1,0.05]
[1747664006344,33.91318159,2429.2,2429.1,0.05]
[1747664006546,4.66827691,2428.2,2428.1,0.05]
[1747664006746,18.373,2428.2,2428.1,0.05]
[1747664007067,17.823,2428.2,2428.1,0.05]
[1747664007273,0.55,2428.5,2428.1,0.05]
[1747664007428,4.66787589,2428.5,2428.1,0.05]
[1747664007628,9.826,2428.4,2428.1,0.05]
[1747664008033,4.11720045,2428.9,2428.4,4.11788424]
[1747664008229,4.11767707,2428.6,2428.1,4.16833904]
[1747664008573,0.55,2428.5,2428.1,4.16833904]
[1747664008792,0.55,2428.5,2428.2,4.1181136]
[1747664009085,0.55,2428.5,2428.1,0.05]
[1747664009230,0.55,2428.5,2428.1,4.16839855]
[1747664009431,0.55,2428.5,2428.2,4.1181961]
[1747664009660,0.55,2428.5,2428.1,4.16837433]
[1747664010059,0.55,2428.5,2428.2,4.1182696]
[1747664010474,0.30920643,2428.6,2428.2,4.11827691]
[1747664010636,9.825,2428.7,2428.4,4.11785153]
[1747664010836,9.825,2428.7,2428.3,5.75338508]
[1747664011073,13.94244725,2428.7,2428.3,5.75338508]
[1747664011271,13.94244725,2428.7,2428.3,1.6354]
[1747664011471,4.6676246,2428.6,2428.3,1.6354]
[1747664011649,0.55,2428.6,2428.2,4.11827596]
[1747664011853,0.85650812,2428.6,2428.1,0.05]
[1747664012078,0.85650812,2428.6,2428.2,4.11819635]
[1747664012273,0.85650812,2428.6,2428.3,4.11808028]
[1747664012594,0.85650812,2428.6,2428.3,4.11803025]
[1747664012964,0.85650812,2428.6,2428.3,4.11798227]
[1747664013167,9.827,2429.1,2428.5,4.11764363]
[1747664013372,19.58290445,2429.1,2428.4,1.5085]
[1747664013691,19.97392631,2429.1,2428.7,4.11734313]
[1747664013853,0.55,2429.0,2428.7,4.11734313]
[1747664014203,4.66697332,2429.0,2428.5,4.1176933]
[1747664014496,0.55,2428.8,2428.4,1.5085]
[1747664014705,0.55,2428.7,2428.4,1.5085]
[1747664014869,9.828,2428.6,2428.4,5.6263485]
[1747664015054,9.828,2428.6,2428.5,4.11776816]
[1747664015578,9.828,2428.6,2428.4,1.5085]
[1747664015889,9.828,2428.6,2428.5,4.11776816]
[1747664016948,10.14692631,2429.1,2428.4,5.62643411]
[1747664016949,0.31592631,2429.1,2428.4,5.6264208]
[1747664017151,9.828,2429.0,2428.4,1.5085]
[1747664017354,0.55,2428.8,2428.2,4.11823763]
[1747664017587,4.66738671,2428.8,2428.3,4.11808215]
[1747664017889,0.55,2428.8,2428.4,4.11789641]
[1747664018053,4.66731498,2428.8,2428.3,4.11808215]
[1747664018467,4.66731498,2428.8,2428.4,4.11792172]
[1747664018695,0.55,2428.8,2428.5,4.11774606]
[1747664018869,0.55,2428.8,2428.5,4.11769029]
[1747664019190,4.66735997,2428.8,2428.3,4.11801045]
[1747664019694,4.66735997,2428.8,2428.4,4.11791645]
[1747664019895,0.55,2428.8,2428.4,4.11791645]
[1747664020098,0.55,2428.8,2428.5,4.11770154]
[1747664020303,17.832,2428.9,2428.6,4.11749898]
[1747664020802,17.832,2428.9,2428.5,4.11769804]
[1747664022005,17.832,2428.9,2428.4,4.1177782]
[1747664022212,21.94923991,2428.9,2428.3,4.11808246]
[1747664022508,4.66759281,2428.7,2428.2,4.11820905]
[1747664022863,4.11761041,2428.6,2428.2,4.11820905]
[1747664023066,9.827,2428.5,2428.1,5.67656037]
[1747664023304,4.67930769,2428.4,2428.1,0.05]
[1747664023911,1.5046,2428.8,2428.1,0.05]
[1747664024119,14.49456613,2428.7,2428.2,4.11817124]
[1747664024285,0.55,2428.5,2428.2,4.11827251]
[1747664024605,4.11760008,2428.6,2428.1,0.05]
[1747664024606,0.55,2428.6,2428.3,4.11799524]
[1747664024818,0.55,2428.6,2428.2,4.11817423]
[1747664025029,9.827,2428.7,2428.1,0.05]
[1747664025170,9.827,2428.7,2428.4,4.11786156]
[1747664025372,0.55,2428.6,2428.2,4.11811989]
[1747664025785,4.66767435,2428.6,2428.1,4.16838617]
[1747664025981,9.827,2428.7,2428.1,0.05]
[1747664026185,13.94452073,2428.7,2428.2,4.11816527]
[1747664026399,13.94452073,2428.7,2428.3,4.11806734]
[1747664027096,0.55,2428.6,2428.2,4.24995717]
[1747664027293,0.55,2428.6,2428.2,0.13174838]
[1747664027467,0.55,2428.6,2428.3,4.11807419]
[1747664027675,0.55,2428.6,2428.4,0.13174838]
[1747664028114,9.5046,2428.8,2428.4,0.13174838]
[1747664028321,9.826,2428.5,2428.4,4.24968611]
[1747664028622,1.89734881,2429.1,2428.8,4.11716634]
[1747664028779,9.826,2429.0,2428.7,4.11734984]
[1747664028979,8.0,2429.0,2428.7,4.11734984]
[1747664029181,9.826,2428.9,2428.7,4.11734984]
[1747664029425,9.826,2428.9,2428.6,4.11743476]
[1747664029621,9.826,2428.9,2428.7,4.11735859]
[1747664029822,9.826,2428.9,2428.5,4.11766572]
[1747664030130,0.55,2428.8,2428.5,4.11773298]
[1747664030280,0.55,2428.8,2428.6,0.13174838]
[1747664030480,9.826,2428.9,2428.7,4.11741344]
[1747664030705,9.826,2428.9,2428.6,0.13174838]
[1747664030902,9.826,2428.9,2428.7,4.11735496]
[1747664031174,10.13944881,2429.1,2428.8,4.11722679]
[1747664031378,9.825,2429.0,2428.8,4.11722679]
[1747664031678,9.825,2429.0,2428.9,4.2456379]
[1747664032299,9.825,2429.0,2428.9,4.5129832]
[1747664033703,9.828,2429.1,2429.0,4.11692054]
[1747664033887,19.651,2429.1,2429.0,4.11692054]
[1747664034116,19.651,2429.1,2428.9,0.39597179]
[1747664034291,4.66692054,2429.0,2428.9,0.2673453]
[1747664034492,0.55,2429.0,2428.9,0.2673453]
[1747664034914,4.66692054,2429.0,2428.9,0.2673453]
[1747664035093,10.16791114,2430.0,2429.0,1.5973]
[1747664035294,4.11651437,2429.3,2428.9,0.260383]
[1747664035524,0.55,2429.1,2428.9,0.260383]
[1747664035726,12.66692054,2429.0,2428.9,0.260383]
[1747664035931,14.24932054,2429.0,2428.9,0.260383]
[1747664036232,19.13421972,2429.0,2428.9,0.13174838]
[1747664036417,12.66725955,2428.8,2428.7,0.13559692]
[1747664036804,0.55,2429.1,2428.7,4.25289162]
[1747664037006,9.821,2428.9,2428.8,4.11725955]
[1747664037327,9.821,2428.9,2428.8,0.12863067]
[1747664037532,9.821,2428.9,2428.8,4.24574107]
[1747664038029,9.821,2428.9,2428.8,4.37745786]
[1747664038209,9.821,2428.9,2428.8,0.26035376]
[1747664038412,9.821,2428.9,2428.8,0.13171679]
[1747664038615,9.821,2428.9,2428.8,0.26035408]
[1747664038941,9.821,2428.9,2428.8,4.24897634]
[1747664039101,9.821,2428.9,2428.8,0.26035406]
[1747664039302,9.821,2428.9,2428.8,0.26035404]
[1747664040000,10.371,2428.9,2428.8,0.26035404]
[1747664040216,10.371,2428.9,2428.8,0.13171679]
[1747664040758,10.371,2428.9,2428.8,4.24897634]
[1747664040917,10.371,2428.9,2428.8,0.13171679]
[1747664041427,10.371,2428.9,2428.8,0.26035458]
[1747664041647,10.371,2428.9,2428.8,0.13171679]
[1747664041945,9.821,2428.9,2428.8,4.24897634]
[1747664042156,9.821,2428.9,2428.8,0.13171679]
[1747664042299,9.821,2428.9,2428.8,4.24897634]
[1747664043036,9.828,2429.1,2428.5,5.67213695]
[1747664043223,9.82,2429.0,2428.9,4.11693524]
[1747664043936,9.82,2429.0,2428.8,4.11711295]
[1747664044110,9.82,2429.0,2428.9,4.11709004]
[1747664044317,9.828,2429.1,2429.0,4.11692054]
[1747664044526,19.647,2429.1,2429.0,4.11692054]
[1747664044725,0.30510745,2429.5,2429.3,4.11630111]
[1747664044925,9.819,2429.4,2429.3,4.11630111]
[1747664045100,9.828,2429.7,2429.6,4.11590385]
[1747664045308,9.819,2429.8,2429.7,4.11573445]
[1747664045549,9.819,2429.8,2429.6,5.70633186]
[1747664045705,9.819,2429.8,2429.7,4.11573445]
[1747664046300,27.61,2430.1,2429.9,4.11532416]
[1747664046505,9.818,2430.0,2429.9,4.11532416]
[1747664046736,17.782,2430.1,2430.0,4.11522633]
[1747664046941,27.599,2430.1,2430.0,4.11522633]
[1747664047334,27.599,2430.1,2429.6,1.5905]
[1747664047537,9.817,2430.1,2429.9,4.1152956]
[1747664047865,23.55209219,2430.8,2430.3,4.11471834]
[1747664048158,9.827,2430.5,2430.1,5.65514475]
[1747664048319,23.55202999,2430.8,2430.4,4.11447592]
[1747664048320,9.827,2430.7,2430.4,4.11447592]
[1747664048522,9.817,2430.6,2430.4,4.11447592]
[1747664048927,9.817,2430.6,2430.5,4.11437975]
[1747664049453,17.78,2430.8,2430.2,1.5702]
[1747664049758,11.3198,2430.7,2429.9,1.5702]
[1747664049908,4.11428243,2430.6,2429.9,5.68557793]
[1747664050110,4.1143989,2430.5,2430.0,4.11512628]
[1747664050313,4.11496488,2430.2,2429.9,1.5702]
[1747664050631,9.814,2430.1,2429.6,1.5629]
[1747664050832,9.814,2430.0,2429.6,2.1308133]
[1747664051033,9.814,2430.0,2429.9,4.11539569]
[1747664051612,9.825,2430.5,2430.3,4.11469]
[1747664051812,9.825,2430.5,2429.6,1.5629]
[1747664051813,9.814,2430.3,2430.0,4.11508708]
[1747664052326,9.814,2430.3,2430.0,4.1151975]
[1747664052825,9.814,2430.3,2430.0,4.11510654]
[1747664053024,9.814,2430.3,2430.1,4.1150196]
[1747664053227,9.814,2430.3,2429.6,9.5629]
[1747664053427,9.814,2430.3,2430.0,4.11514494]
[1747664054155,9.814,2430.3,2430.1,4.11497893]
[1747664054367,9.825,2430.5,2430.2,4.11488766]
[1747664054516,9.812,2430.4,2430.2,4.11486667]
[1747664054717,19.752,2430.4,2430.2,4.11486667]
[1747664055952,19.752,2430.4,2430.3,4.11471834]
[1747664056263,9.94,2430.4,2430.3,4.11471834]
[1747664059076,27.72,2430.8,2430.6,4.11415905]
[1747664059252,9.807,2430.7,2430.6,4.11415905]
[1747664059573,9.94,2430.8,2430.7,4.11404122]
[1747664059773,19.747,2430.8,2430.1,1.6114]
[1747664060077,19.747,2430.8,2430.4,4.1144673]
[1747664060278,0.55,2430.7,2430.2,4.11471841]
[1747664060583,19.747,2430.8,2430.1,1.6114]
[1747664060747,19.747,2430.8,2430.1,2.18405773]
[1747664060939,19.747,2430.8,2430.6,4.11411509]
[1747664061339,19.747,2430.8,2430.4,4.11453938]
[1747664061640,23.8609469,2430.8,2430.3,4.11457027]
[1747664061842,23.8609469,2430.8,2430.4,4.11448434]
[1747664062276,19.747,2430.8,2430.5,4.11423264]
[1747664062575,9.804,2430.7,2430.6,4.11420533]
[1747664062792,9.94,2430.8,2430.7,4.11404122]
[1747664063001,19.744,2430.8,2430.6,4.11412041]
[1747664063543,23.85795459,2430.8,2430.1,5.72633189]
[1747664063774,4.11414562,2430.7,2430.2,4.11477701]
[1747664063974,1.5705,2430.6,2429.8,1.6243]
[1747664064148,0.55,2430.4,2429.8,1.6243]
[1747664064475,0.55,2430.0,2429.7,4.11564683]
[1747664064674,10.49,2430.0,2429.7,4.11564683]
[1747664064876,14.60531255,2430.0,2429.5,4.1159927]
[1747664065082,10.49,2430.0,2429.7,4.11561361]
[1747664065270,9.94,2430.0,2429.9,4.11539569]
[1747664065987,9.94,2430.0,2429.9,5.63849569]
[1747664066171,9.94,2430.0,2429.9,6.6139011]
[1747664066488,9.803,2430.3,2430.2,4.11488766]
[1747664067259,9.803,2430.3,2429.9,2.49850541]
[1747664067468,9.803,2430.3,2430.0,4.11518659]
[1747664067780,13.91780904,2430.3,2429.8,4.11543894]
[1747664067942,9.803,2430.3,2429.9,4.11532091]
[1747664068146,9.803,2430.3,2430.2,4.11488766]
[1747664069289,9.798,2430.3,2430.0,4.11514939]
[1747664069693,9.798,2430.3,2430.2,4.11488766]
[1747664069897,19.749,2430.8,2430.1,1.5542]
[1747664070063,9.798,2430.5,2430.4,4.11454904]
[1747664070455,9.798,2430.5,2430.3,4.11460438]
[1747664070805,9.797,2430.6,2430.4,4.11452484]
[1747664071096,9.797,2430.6,2430.5,4.11437975]
[1747664073587,8.0,2430.4,2429.7,1.637]
[1747664073789,8.0,2430.4,2430.0,4.11514008]
[1747664073790,9.809,2430.3,2430.0,4.11514008]
[1747664073987,9.809,2430.3,2429.9,4.11533891]
[1747664074157,13.92374008,2430.3,2429.8,4.11547902]
[1747664074688,9.809,2430.3,2430.0,4.11522592]
[1747664074899,9.809,2430.3,2429.9,4.11530313]
[1747664075797,9.809,2430.3,2430.0,4.11521851]
[1747664076508,9.809,2430.3,2430.1,4.11495065]
[1747664076667,9.793,2430.2,2430.0,4.11515803]
[1747664077382,9.792,2430.1,2430.0,4.11515803]
[1747664077975,9.792,2430.1,2429.9,4.11531133]
[1747664079500,9.792,2430.1,2430.0,4.11522633]
[1747664079877,9.792,2430.1,2429.9,4.11530141]
[1747664080299,4.1154197,2429.9,2429.3,4.11629656]
[1747664080474,9.94,2429.9,2429.3,0.56598966]
[1747664080674,9.94,2429.9,2429.8,4.11556506]
[1747664082193,19.729,2429.9,2429.8,4.11556506]
[1747664084108,9.94,2429.9,2429.8,4.11556506]
[1747664084306,19.727,2429.9,2429.8,4.11556506]
[1747664084994,19.727,2429.9,2429.7,4.11565367]
[1747664085193,19.727,2429.9,2429.6,1.6232]
[1747664085374,19.727,2429.9,2429.7,4.11564134]
[1747664085699,19.727,2429.9,2429.7,4.11566663]
[1747664085907,19.727,2429.9,2429.3,8.0]
[1747664086106,19.727,2429.9,2429.8,4.11556506]
[1747664087580,9.94,2429.9,2429.8,4.11556506]
[1747664087787,19.724,2429.9,2429.8,4.11556506]
[1747664090903,9.94,2429.9,2429.8,4.11556506]
[1747664091619,4.11394138,2430.8,2429.8,1.5476]
[1747664091808,9.78,2430.7,2429.9,0.12855061]
[1747664091988,4.12557833,2430.6,2430.2,4.11488658]
[1747664092183,4.11462009,2430.4,2430.0,4.11522633]
[1747664092492,4.12591826,2430.4,2429.9,4.11531791]
[1747664092693,4.11478971,2430.3,2429.8,4.1154673]
[1747664092910,9.779,2430.2,2429.9,4.11538036]
[1747664093108,9.779,2430.2,2429.9,4.11536896]
[1747664093287,1.5774,2430.5,2429.5,5.67225734]
[1747664093488,9.778,2430.4,2430.1,4.11492688]
[1747664093820,9.778,2430.4,2429.6,0.71114073]
[1747664094027,9.778,2430.4,2430.0,4.11512067]
[1747664094526,13.89262681,2430.4,2430.0,4.11512067]
[1747664094892,4.1148041,2430.3,2429.7,4.11565452]
[1747664095093,4.12610227,2430.3,2429.7,4.11561911]
[1747664095295,4.67609134,2430.3,2429.9,4.11539352]
[1747664095501,4.11491619,2430.2,2429.8,4.11550945]
[1747664095701,14.46310732,2430.3,2429.9,4.11538327]
[1747664095914,1.517,2430.2,2429.9,4.11538327]
[1747664096228,5.63189384,2430.2,2429.8,4.11549415]
[1747664096444,1.517,2430.2,2429.8,4.11549415]
[1747664096621,4.11506726,2430.1,2429.7,4.11557618]
[1747664096824,9.94,2430.1,2429.8,4.11541546]
[1747664097323,9.94,2430.1,2429.7,4.11564027]
[1747664097497,9.94,2430.1,2429.3,1.6552]
[1747664097498,4.11539569,2429.9,2429.3,4.11632573]
[1747664097697,24.37971379,2429.8,2429.4,4.11623366]
[1747664097935,20.264,2429.8,2429.4,4.11612566]
[1747664098237,0.55,2429.5,2429.0,4.11682212]
[1747664098536,1.519,2429.4,2429.0,4.11682212]
[1747664098737,9.773,2429.3,2429.0,4.11682212]
[1747664098934,13.88948685,2429.3,2428.8,4.11712333]
[1747664099236,13.88948685,2429.3,2428.6,4.11753067]
[1747664099237,4.11687751,2429.1,2428.6,4.11753067]
[1747664099398,5.69430455,2429.0,2428.5,4.11767167]
[1747664099735,4.11711329,2428.9,2428.4,4.11787953]
[1747664099936,9.771,2428.8,2428.4,4.11787953]
[1747664100136,13.88827125,2428.8,2428.4,4.11787953]
[1747664100338,10.338,2428.7,2428.1,1.5577]
[1747664100666,0.55,2428.5,2428.2,4.11815278]
[1747664100805,9.771,2428.7,2428.3,4.11810731]
[1747664101008,1.5588,2428.9,2428.6,4.11750776]
[1747664101009,11.3298,2428.9,2428.6,4.11750776]
[1747664101203,11.3298,2428.9,2428.3,4.88489918]
[1747664101502,9.771,2428.9,2428.8,4.11725955]
[1747664101706,9.771,2428.9,2428.7,4.1173425]
[1747664101915,9.771,2428.9,2428.8,4.11725955]
[1747664102120,9.771,2428.9,2428.7,4.11731636]
[1747664102323,9.771,2428.9,2428.7,4.11734724]
[1747664102504,9.771,2428.9,2428.8,4.11725955]
[1747664103053,9.77,2429.0,2428.7,0.41173472]
[1747664103262,9.77,2429.2,2429.1,4.11663092]
[1747664103573,10.07291748,2429.9,2429.1,4.88489918]
[1747664103731,9.77,2429.9,2429.2,4.11643273]
[1747664103929,9.77,2429.9,2429.8,4.11556506]
[1747664104184,5.70329677,2430.5,2429.9,4.11527829]
[1747664104312,9.769,2430.2,2429.9,4.11530705]
[1747664104516,13.883923,2430.2,2429.7,4.11566465]
[1747664104716,0.01129817,2430.1,2429.7,4.11566465]
[1747664104950,1.5777,2430.0,2429.7,4.11572539]
[1747664105254,9.769,2430.2,2429.7,0.82316976]
[1747664105550,11.3457,2430.6,2429.9,1.6135]
[1747664105755,11.3457,2430.6,2430.2,4.11484355]
[1747664106062,11.3457,2430.6,2430.3,4.1147055]
[1747664106242,11.3802,2430.9,2429.9,1.6135]
[1747664106426,9.767,2430.8,2430.4,4.11452137]
[1747664106627,4.12544915,2430.7,2430.2,4.11481308]
[1747664106819,4.11430324,2430.6,2430.1,4.11504688]
[1747664107148,4.11430324,2430.6,2429.9,5.72877699]
[1747664107149,8.0,2430.7,2429.9,1.6135]
[1747664107350,8.0,2430.7,2430.3,4.11459088]
[1747664107650,12.11417324,2430.7,2430.2,4.11485303]
[1747664108210,9.764,2430.6,2430.4,4.11444191]
[1747664108654,9.764,2430.6,2430.3,4.11470968]
[1747664108964,9.764,2430.6,2430.4,4.11452051]
[1747664109152,9.764,2430.6,2430.4,4.11454053]
[1747664109357,15.80330321,2430.9,2430.8,4.11387197]
[1747664109358,0.05,2430.9,2430.8,4.11387197]
[1747664110224,0.05,2430.9,2430.6,5.66223979]
[1747664110225,0.05,2430.9,2430.6,1.5481]
[1747664110423,0.05,2430.9,2430.5,4.11427844]
[1747664110766,0.05,2430.9,2430.4,4.1144538]
[1747664110767,13.92470841,2430.9,2430.4,4.1144538]
[1747664110947,4.11412153,2430.7,2430.2,4.11477195]
[1747664111470,13.92477741,2430.9,2430.4,4.11445889]
[1747664111628,4.11401506,2430.8,2430.2,4.11488766]
[1747664111828,4.11401506,2430.8,2430.4,4.11451138]
[1747664112142,0.05,2430.9,2430.8,4.11387197]
[1747664112339,0.05,2430.9,2430.7,4.11400188]
[1747664112553,0.05,2430.9,2430.6,4.11411962]
[1747664112872,0.05,2430.9,2430.7,4.11402212]
[1747664113743,0.05,2430.9,2430.6,4.11411635]
[1747664114144,0.05,2430.9,2430.7,4.1140281]
[1747664114342,0.05,2430.9,2430.8,4.11387197]
[1747664114536,0.05,2430.9,2430.4,4.11448743]
[1747664114744,0.05,2430.9,2430.4,5.32593617]
[1747664114954,0.05,2430.9,2430.8,4.11387197]
[1747664117466,0.05,2430.9,2430.8,5.67047197]
[1747664117770,0.05,2430.9,2430.8,13.67047197]
[1747664118670,1.7166,2432.9,2431.8,5.76438027]
[1747664118975,12.11077195,2432.7,2431.8,3.12834974]
[1747664119271,4.11105914,2432.5,2431.8,7.24053001]
[1747664119573,4.11125065,2432.4,2431.8,7.24053001]
[1747664119941,4.1110577,2432.5,2431.8,7.24053001]
[1747664120469,4.11119525,2432.4,2431.8,7.24053001]
[1747664120847,4.11136724,2432.3,2431.8,3.12834974]
[1747664121244,5.76245826,2432.4,2431.8,7.24053001]
[1747664121449,5.76237339,2432.4,2431.8,7.24053001]
[1747664122073,15.41956833,2432.7,2431.8,7.24053001]
[1747664122276,11.3088,2432.7,2431.8,7.24053001]
[1747664122584,11.2988,2432.7,2431.8,7.24053001]
[1747664122880,4.11092777,2432.6,2431.8,7.24053001]
[1747664123084,4.11108282,2432.5,2431.8,7.24053001]
[1747664123288,4.11117454,2432.4,2431.8,7.24053001]
[1747664123585,4.11107362,2432.5,2431.8,7.24053001]
[1747664123786,11.2988,2432.7,2431.8,7.24053001]
[1747664123970,9.94,2432.6,2431.8,15.24053001]
[1747664124380,9.94,2432.6,2431.8,24.98053001]
[1747664125605,9.94,2432.6,2431.8,24.94133001]
[1747664125888,0.05,2432.9,2432.8,4.11048997]
[1747664126192,0.05,2432.9,2432.8,17.8586]
[1747664126351,0.05,2432.9,2432.8,19.32720032]
[1747664128055,4.1586909,2433.9,2432.8,19.32720032]
[1747664128056,0.05,2433.9,2433.0,5.66765207]
[1747664128254,0.05,2433.9,2433.3,4.88489918]
[1747664128470,4.15871583,2433.9,2433.3,18.74242468]
[1747664128676,4.15871583,2433.9,2433.4,4.10946677]
[1747664128881,0.05,2433.9,2433.3,13.85759438]
[1747664129069,0.05,2433.9,2433.3,13.85757601]
[1747664129277,0.05,2433.9,2433.4,4.10947645]
[1747664129491,0.05,2433.9,2433.3,18.74249297]
[1747664129653,0.05,2433.9,2433.5,4.10930705]
[1747664130196,0.05,2433.9,2433.7,4.10889662]
[1747664130658,0.05,2433.9,2433.6,5.76205919]
[1747664131181,0.05,2433.9,2433.6,5.76209524]
[1747664132901,0.05,2433.9,2433.5,4.10929705]
[1747664132902,0.05,2433.9,2433.5,4.10925352]
[1747664133207,0.05,2433.9,2433.4,4.10940285]
[1747664133410,0.05,2433.9,2433.3,20.2491895]
[1747664133411,0.05,2433.9,2433.5,4.10927267]
[1747664134044,4.15868702,2433.9,2433.4,4.10945025]
[1747664134190,0.05,2433.9,2433.4,4.10931536]
[1747664134539,0.05,2433.9,2433.5,4.10916016]
[1747664134888,0.05,2433.9,2433.6,4.10913342]
[1747664135188,0.05,2433.9,2433.8,4.10880105]
[1747664135695,0.05,2433.9,2433.6,0.82184488]
[1747664135904,0.05,2433.9,2433.5,4.10922107]
[1747664136610,0.05,2433.9,2433.5,4.10923064]
[1747664137016,4.1586984,2433.9,2433.4,4.10934397]
[1747664137236,4.15864761,2433.9,2433.4,4.10942177]
[1747664137752,1.6127,2433.8,2433.4,4.10938794]
[1747664138245,11.3257,2433.8,2433.2,4.10981423]
[1747664138432,0.05,2433.9,2433.4,4.10943362]
[1747664138632,9.762,2433.9,2433.5,4.10930758]
[1747664138949,9.762,2433.9,2433.5,4.10920102]
[1747664139510,9.762,2433.9,2433.0,6.50849918]
[1747664139511,13.87064199,2433.9,2433.0,6.50849918]
[1747664139707,13.87075997,2433.9,2433.4,4.10940456]
[1747664140037,13.87072852,2433.9,2433.4,4.10940456]
[1747664140232,4.1088056,2433.8,2433.3,4.10955739]
[1747664140433,13.87072897,2433.9,2433.4,4.10938882]
[1747664140757,13.87072897,2433.9,2433.4,4.10931156]
[1747664141127,9.762,2433.9,2433.5,4.10929763]
[1747664141433,0.05,2433.9,2433.8,4.10880105]
[1747664141635,0.05,2433.9,2433.6,1.551]
[1747664141826,0.05,2433.9,2433.6,4.10906321]
[1747664142029,0.05,2433.9,2433.7,4.108881]
[1747664142233,0.05,2433.9,2433.8,4.10880105]
[1747664142730,0.05,2433.9,2433.7,4.10887846]
[1747664142925,0.05,2433.9,2433.6,4.10913089]
[1747664143252,0.05,2433.9,2433.6,4.10906671]
[1747664143452,11.2524,2433.8,2433.0,1.551]
[1747664143614,11.2524,2433.8,2433.4,4.10943873]
[1747664143814,11.2524,2433.8,2433.5,4.10919528]
[1747664144247,9.705,2433.8,2433.7,4.10896988]
[1747664144450,0.05,2433.9,2433.8,4.10880105]
[1747664145858,0.05,2433.9,2433.6,5.75596521]
[1747664146148,0.05,2433.9,2433.7,4.10892568]
[1747664146352,0.05,2433.9,2433.6,4.10908092]
[1747664146541,0.05,2433.9,2433.4,13.81241999]
[1747664146737,0.05,2433.9,2433.5,4.1091561]
[1747664147152,0.05,2433.9,2433.4,9.703]
[1747664147452,4.10888201,2433.8,2433.4,4.10946324]
[1747664147624,0.05,2433.9,2433.3,1.5793]
[1747664147625,4.15863797,2433.9,2433.3,1.5793]
[1747664147830,0.05,2433.9,2433.2,13.81279623]
[1747664148055,0.05,2433.9,2433.6,4.10899567]
[1747664148261,0.05,2433.9,2433.2,13.81280896]
[1747664148553,0.05,2433.9,2433.7,4.10891181]
[1747664149122,0.05,2433.9,2433.7,4.10883464]
[1747664149322,0.05,2433.9,2433.8,4.10880105]
[1747664151254,1.7147,2433.9,2433.6,4.1090412]
[1747664151451,1.7147,2433.9,2433.7,4.10896297]